[Event "Late-Titled-Tuesday-Blitz-February-13-2024"]
[Site "Chess.com"]
[Date "2024.02.13"]
[Round "4"]
[White "dolynachess"]
[Black "JaackCamel"]
[Result "1-0"]
[WhiteElo "2486"]
[BlackElo "2203"]
[TimeControl "180+1"]
[EndTime "14:35:36 PST"]
[Termination "dolynachess won by resignation"]

1. d4 {[%clk 0:03:00.9]} 1... d5 {[%clk 0:02:59.5]} 2. c4 {[%clk 0:03:00.9]}
2... e6 {[%clk 0:02:59.3]} 3. Nf3 {[%clk 0:03:01.8]} 3... c6 {[%clk 0:02:58.8]}
4. g3 {[%clk 0:03:02.7]} 4... dxc4 {[%clk 0:02:58.3]} 5. Bg2 {[%clk 0:03:03.6]}
5... b5 {[%clk 0:02:58.3]} 6. O-O {[%clk 0:03:03.8]} 6... Bb7 {[%clk 0:02:58.1]}
7. Nc3 {[%clk 0:03:04.4]} 7... a6 {[%clk 0:02:57.9]} 8. e4 {[%clk 0:03:04.7]}
8... Nd7 {[%clk 0:02:57.8]} 9. a4 {[%clk 0:03:00.5]} 9... Ngf6 {[%clk
0:02:52.5]} 10. e5 {[%clk 0:02:59.9]} 10... Nd5 {[%clk 0:02:50.6]} 11. Ng5
{[%clk 0:03:00.2]} 11... Be7 {[%clk 0:02:37.6]} 12. Qh5 {[%clk 0:02:57.6]} 12...
g6 {[%clk 0:02:26.8]} 13. Qh6 {[%clk 0:02:56.8]} 13... Bf8 {[%clk 0:02:15.4]}
14. Qh3 {[%clk 0:02:55]} 14... Bg7 {[%clk 0:02:08]} 15. Nce4 {[%clk 0:02:51.1]}
15... Bf8 {[%clk 0:01:24.8]} 16. Nxe6 {[%clk 0:02:48.9]} 16... fxe6 {[%clk
0:01:22]} 17. Qxe6+ {[%clk 0:02:47.3]} 17... Qe7 {[%clk 0:01:06.1]} 18. Nd6+
{[%clk 0:02:44.2]} 18... Kd8 {[%clk 0:01:05]} 19. Bg5 {[%clk 0:02:28.6]} 19...
Qxg5 {[%clk 0:00:57.5]} 20. Nf7+ {[%clk 0:02:19.5]} 20... Kc7 {[%clk 0:00:49.8]}
21. Nxg5 {[%clk 0:02:20.2]} 21... Be7 {[%clk 0:00:40.2]} 22. Nf7 {[%clk
0:02:08.2]} 22... Rhe8 {[%clk 0:00:39.2]} 23. Nd6 {[%clk 0:02:06]} 23... Bxd6
{[%clk 0:00:38.7]} 24. Qxd6+ {[%clk 0:02:06.7]} 24... Kb6 {[%clk 0:00:38]} 1-0

[Event "Late-Titled-Tuesday-Blitz-February-13-2024"]
[Site "Chess.com"]
[Date "2024.02.13"]
[Round "4"]
[White "OK97"]
[Black "OneTrickPony_82"]
[Result "1-0"]
[WhiteElo "2852"]
[BlackElo "2579"]
[TimeControl "180+1"]
[EndTime "14:35:37 PST"]
[Termination "OK97 won by resignation"]

1. d4 {[%clk 0:03:00.9]} 1... Nf6 {[%clk 0:02:59.4]} 2. Nf3 {[%clk 0:03:01.3]}
2... d5 {[%clk 0:02:59.3]} 3. e3 {[%clk 0:03:01.6]} 3... c5 {[%clk 0:02:58.2]}
4. Bb5+ {[%clk 0:03:00.1]} 4... Nbd7 {[%clk 0:02:54.4]} 5. O-O {[%clk
0:02:50.9]} 5... Qc7 {[%clk 0:02:54.1]} 6. c4 {[%clk 0:02:39.1]} 6... dxc4
{[%clk 0:02:48.2]} 7. d5 {[%clk 0:02:22.9]} 7... a6 {[%clk 0:02:39.6]} 8. Bxc4
{[%clk 0:02:21.2]} 8... b5 {[%clk 0:02:40.2]} 9. Be2 {[%clk 0:02:16.6]} 9... Bb7
{[%clk 0:02:37.3]} 10. a4 {[%clk 0:02:16.7]} 10... b4 {[%clk 0:02:30.9]} 11. e4
{[%clk 0:01:59.7]} 11... Nxe4 {[%clk 0:02:21.1]} 12. Re1 {[%clk 0:01:59]} 12...
Ndf6 {[%clk 0:02:15.9]} 13. Bc4 {[%clk 0:01:47.9]} 13... Nd6 {[%clk 0:02:06.2]}
14. Bf4 {[%clk 0:01:47.4]} 14... Qd8 {[%clk 0:01:57.6]} 15. Nbd2 {[%clk
0:01:41.2]} 15... Nxc4 {[%clk 0:01:45.4]} 16. Nxc4 {[%clk 0:01:42.1]} 16... Bxd5
{[%clk 0:01:45.5]} 17. Nd6+ {[%clk 0:01:36.5]} 17... Kd7 {[%clk 0:01:41]} 18.
Nxf7 {[%clk 0:01:27.9]} 18... Qe8 {[%clk 0:01:40.4]} 19. N3e5+ {[%clk
0:01:23.9]} 19... Kc8 {[%clk 0:01:35.1]} 20. Nxh8 {[%clk 0:01:23.3]} 20... e6
{[%clk 0:01:34.3]} 21. Nhf7 {[%clk 0:01:21.2]} 21... Kb7 {[%clk 0:01:33.6]} 22.
Rc1 {[%clk 0:01:17.8]} 22... Rc8 {[%clk 0:01:31.7]} 23. Bg3 {[%clk 0:01:13.8]}
23... Qxa4 {[%clk 0:01:25.4]} 1-0

[Event "Late-Titled-Tuesday-Blitz-February-13-2024"]
[Site "Chess.com"]
[Date "2024.02.13"]
[Round "4"]
[White "Hikaru"]
[Black "Durarbayli"]
[Result "0-1"]
[WhiteElo "3319"]
[BlackElo "2931"]
[TimeControl "180+1"]
[EndTime "14:36:26 PST"]
[Termination "Durarbayli won by resignation"]

1. e4 {[%clk 0:03:00.9]} 1... e6 {[%clk 0:02:59.8]} 2. d3 {[%clk 0:02:58.5]}
2... d5 {[%clk 0:02:59.6]} 3. Nd2 {[%clk 0:02:59.4]} 3... Nc6 {[%clk 0:02:58.6]}
4. Ngf3 {[%clk 0:02:59.5]} 4... g6 {[%clk 0:02:59]} 5. e5 {[%clk 0:02:58.2]}
5... d4 {[%clk 0:02:50.1]} 6. a4 {[%clk 0:02:53.9]} 6... Bg7 {[%clk 0:02:46.5]}
7. Nc4 {[%clk 0:02:53.9]} 7... b6 {[%clk 0:02:44.1]} 8. h4 {[%clk 0:02:47.7]}
8... h6 {[%clk 0:02:40.7]} 9. g3 {[%clk 0:02:40.4]} 9... Ba6 {[%clk 0:02:27.4]}
10. Bf4 {[%clk 0:02:38.4]} 10... Nge7 {[%clk 0:01:51.4]} 11. Bg2 {[%clk
0:02:37]} 11... Nd5 {[%clk 0:01:51.2]} 12. Bd2 {[%clk 0:02:34.5]} 12... Qd7
{[%clk 0:01:37.2]} 13. O-O {[%clk 0:02:34.4]} 13... O-O-O {[%clk 0:01:30.1]} 14.
a5 {[%clk 0:02:26.1]} 14... b5 {[%clk 0:01:28.6]} 15. Na3 {[%clk 0:02:19.5]}
15... g5 {[%clk 0:01:05.5]} 16. hxg5 {[%clk 0:02:17.4]} 16... hxg5 {[%clk
0:00:57.1]} 17. Bxg5 {[%clk 0:02:18.3]} 17... Rdg8 {[%clk 0:00:57.3]} 18. Qe2
{[%clk 0:02:17.1]} 18... Rh5 {[%clk 0:00:41.6]} 19. Rfe1 {[%clk 0:02:01.2]}
19... Bf8 {[%clk 0:00:39.3]} 20. Bd2 {[%clk 0:02:01.2]} 20... Rgh8 {[%clk
0:00:39.4]} 21. c4 {[%clk 0:01:54.6]} 21... dxc3 {[%clk 0:00:32.8]} 22. bxc3
{[%clk 0:01:55.5]} 22... b4 {[%clk 0:00:32.7]} 23. Nb1 {[%clk 0:01:47.6]} 23...
bxc3 {[%clk 0:00:29.2]} 24. Nxc3 {[%clk 0:01:48.5]} 24... Ndb4 {[%clk
0:00:29.5]} 25. Be3 {[%clk 0:01:44.6]} 25... Qxd3 {[%clk 0:00:21]} 26. Qb2
{[%clk 0:01:44]} 26... Qh7 {[%clk 0:00:19.2]} 27. Nh4 {[%clk 0:01:42.1]} 27...
Rxh4 {[%clk 0:00:19.3]} 28. gxh4 {[%clk 0:01:42.5]} 28... Qxh4 {[%clk
0:00:19.9]} 29. f4 {[%clk 0:01:40.8]} 29... Qh2+ {[%clk 0:00:18.2]} 30. Kf2
{[%clk 0:01:41.1]} 30... Nd3+ {[%clk 0:00:19]} 0-1

[Event "Late-Titled-Tuesday-Blitz-February-13-2024"]
[Site "Chess.com"]
[Date "2024.02.13"]
[Round "4"]
[White "cthake"]
[Black "Conejoviejo67"]
[Result "0-1"]
[WhiteElo "1805"]
[BlackElo "2439"]
[TimeControl "180+1"]
[EndTime "14:36:35 PST"]
[Termination "Conejoviejo67 won by resignation"]

1. e4 {[%clk 0:03:00.9]} 1... e6 {[%clk 0:02:59.7]} 2. d3 {[%clk 0:02:56.8]}
2... d5 {[%clk 0:03:00.6]} 3. Nd2 {[%clk 0:02:55.1]} 3... Nf6 {[%clk 0:02:59.6]}
4. g3 {[%clk 0:02:54]} 4... c5 {[%clk 0:02:57.2]} 5. Bg2 {[%clk 0:02:53.6]} 5...
Nc6 {[%clk 0:02:55.1]} 6. Ngf3 {[%clk 0:02:32]} 6... Be7 {[%clk 0:02:54.7]} 7.
O-O {[%clk 0:02:31.7]} 7... O-O {[%clk 0:02:54.2]} 8. e5 {[%clk 0:02:30]} 8...
Nd7 {[%clk 0:02:54.1]} 9. Re1 {[%clk 0:02:30.5]} 9... Qc7 {[%clk 0:02:49.4]} 10.
Qe2 {[%clk 0:02:21.2]} 10... f6 {[%clk 0:02:42.6]} 11. exf6 {[%clk 0:02:20.2]}
11... Nxf6 {[%clk 0:02:42.9]} 12. c3 {[%clk 0:02:16.7]} 12... Bd6 {[%clk
0:02:39.4]} 13. Ng5 {[%clk 0:02:01.3]} 13... e5 {[%clk 0:02:33.3]} 14. h4 {[%clk
0:01:51.7]} 14... h6 {[%clk 0:02:28.6]} 15. Nh3 {[%clk 0:01:46.5]} 15... Bg4
{[%clk 0:02:26.6]} 16. f3 {[%clk 0:01:44.8]} 16... Be6 {[%clk 0:02:17.5]} 17.
Nf1 {[%clk 0:01:40]} 17... Rae8 {[%clk 0:02:16.2]} 18. Qf2 {[%clk 0:01:30.8]}
18... Qd7 {[%clk 0:02:11.4]} 19. g4 {[%clk 0:01:17.5]} 19... Nxg4 {[%clk
0:02:02.7]} 20. Qg3 {[%clk 0:01:17.5]} 20... e4 {[%clk 0:01:54]} 21. Bf4 {[%clk
0:01:07.7]} 21... Bxf4 {[%clk 0:01:51.6]} 22. Nxf4 {[%clk 0:01:07.3]} 22... exf3
{[%clk 0:01:45]} 23. Bxf3 {[%clk 0:01:04.3]} 23... Nge5 {[%clk 0:01:44.7]} 24.
Nxe6 {[%clk 0:00:31.8]} 24... Nxf3+ {[%clk 0:01:33.9]} 25. Kg2 {[%clk
0:00:20.5]} 25... Nxe1+ {[%clk 0:01:31.7]} 26. Rxe1 {[%clk 0:00:20.7]} 26...
Rxe6 {[%clk 0:01:30.8]} 0-1

[Event "Late-Titled-Tuesday-Blitz-February-13-2024"]
[Site "Chess.com"]
[Date "2024.02.13"]
[Round "4"]
[White "Eloist"]
[Black "deepfear"]
[Result "1-0"]
[WhiteElo "2443"]
[BlackElo "1979"]
[TimeControl "180+1"]
[EndTime "14:36:39 PST"]
[Termination "Eloist won on time"]

1. e4 {[%clk 0:02:57.7]} 1... c5 {[%clk 0:02:58.5]} 2. Nf3 {[%clk 0:02:57.3]}
2... g6 {[%clk 0:02:57.2]} 3. c3 {[%clk 0:02:56.7]} 3... Bg7 {[%clk 0:02:54.5]}
4. d4 {[%clk 0:02:56.7]} 4... cxd4 {[%clk 0:02:55.1]} 5. cxd4 {[%clk 0:02:57.3]}
5... d5 {[%clk 0:02:53.7]} 6. e5 {[%clk 0:02:57.5]} 6... Bg4 {[%clk 0:02:32]} 7.
Bb5+ {[%clk 0:02:56.4]} 7... Nc6 {[%clk 0:02:30.9]} 8. Nbd2 {[%clk 0:02:38.3]}
8... Qa5 {[%clk 0:02:11.6]} 9. Bxc6+ {[%clk 0:02:36.5]} 9... bxc6 {[%clk
0:02:11.2]} 10. O-O {[%clk 0:02:36.4]} 10... e6 {[%clk 0:02:06.4]} 11. Nb3
{[%clk 0:02:33.2]} 11... Qa4 {[%clk 0:01:28.5]} 12. h3 {[%clk 0:02:29.2]} 12...
Bxf3 {[%clk 0:01:23.6]} 13. Qxf3 {[%clk 0:02:30.1]} 13... Ne7 {[%clk 0:01:07]}
14. g4 {[%clk 0:02:16.5]} 14... h5 {[%clk 0:01:04.3]} 15. Bg5 {[%clk 0:02:14.6]}
15... hxg4 {[%clk 0:01:03]} 16. hxg4 {[%clk 0:02:14.4]} 16... Rb8 {[%clk
0:00:58]} 17. Kg2 {[%clk 0:02:08.4]} 17... Rxb3 {[%clk 0:00:52.4]} 18. Qxb3
{[%clk 0:01:58.3]} 18... Qxb3 {[%clk 0:00:18.2]} 19. axb3 {[%clk 0:01:56.8]}
19... Nc8 {[%clk 0:00:11]} 20. Rh1 {[%clk 0:01:52.8]} 20... Rxh1 {[%clk
0:00:08]} 21. Rxh1 {[%clk 0:01:52.3]} 21... Kd7 {[%clk 0:00:07]} 22. Rh7 {[%clk
0:01:51.8]} 22... Bf8 {[%clk 0:00:03.4]} 23. Rxf7+ {[%clk 0:01:51.3]} 23... Be7
{[%clk 0:00:02.6]} 24. Bxe7 {[%clk 0:01:50.2]} 24... Nxe7 {[%clk 0:00:03.5]} 25.
f4 {[%clk 0:01:45.1]} 25... Ke8 {[%clk 0:00:03.3]} 26. Rf6 {[%clk 0:01:45]}
26... Kd7 {[%clk 0:00:02.3]} 27. Kg3 {[%clk 0:01:43.3]} 27... a5 {[%clk
0:00:01.4]} 28. Kh4 {[%clk 0:01:43.2]} 1-0

[Event "Late-Titled-Tuesday-Blitz-February-13-2024"]
[Site "Chess.com"]
[Date "2024.02.13"]
[Round "4"]
[White "LogoCzar"]
[Black "bazar-wokzal"]
[Result "0-1"]
[WhiteElo "2396"]
[BlackElo "2641"]
[TimeControl "180+1"]
[EndTime "14:36:42 PST"]
[Termination "bazar-wokzal won by resignation"]

1. e4 {[%clk 0:03:00.9]} 1... c5 {[%clk 0:02:59]} 2. Nf3 {[%clk 0:03:01]} 2...
d6 {[%clk 0:02:58.9]} 3. d4 {[%clk 0:03:01.4]} 3... cxd4 {[%clk 0:02:59.3]} 4.
Nxd4 {[%clk 0:03:02.3]} 4... Nf6 {[%clk 0:02:59.2]} 5. Nc3 {[%clk 0:03:02.7]}
5... e5 {[%clk 0:02:58.6]} 6. Bb5+ {[%clk 0:03:01.8]} 6... Nbd7 {[%clk
0:02:58.4]} 7. Nf5 {[%clk 0:03:01.7]} 7... a6 {[%clk 0:02:56.7]} 8. Bc4 {[%clk
0:03:00.2]} 8... Nb6 {[%clk 0:02:44]} 9. Bb3 {[%clk 0:02:59]} 9... Nxe4 {[%clk
0:02:38.7]} 10. Nxg7+ {[%clk 0:02:57.7]} 10... Bxg7 {[%clk 0:02:38.7]} 11. Nxe4
{[%clk 0:02:57.9]} 11... d5 {[%clk 0:02:39.1]} 12. Ng5 {[%clk 0:02:55.3]} 12...
Bf5 {[%clk 0:02:29.6]} 13. Be3 {[%clk 0:02:51.6]} 13... O-O {[%clk 0:02:23.4]}
14. Qf3 {[%clk 0:02:43]} 14... Bg6 {[%clk 0:02:18.2]} 15. h4 {[%clk 0:02:41.6]}
15... e4 {[%clk 0:01:56.6]} 16. Qg3 {[%clk 0:02:37.3]} 16... Bxb2 {[%clk
0:01:56]} 17. Rb1 {[%clk 0:02:35.4]} 17... Bc3+ {[%clk 0:01:46.1]} 18. Ke2
{[%clk 0:02:32.5]} 18... d4 {[%clk 0:01:40.1]} 19. h5 {[%clk 0:02:29.9]} 19...
dxe3 {[%clk 0:01:34.4]} 20. hxg6 {[%clk 0:02:29.2]} 20... Qd2+ {[%clk
0:01:34.4]} 21. Kf1 {[%clk 0:02:28.3]} 21... e2+ {[%clk 0:01:34.3]} 22. Kg1
{[%clk 0:02:26.6]} 22... hxg6 {[%clk 0:01:19.3]} 23. Nxf7 {[%clk 0:02:14.4]}
23... Kg7 {[%clk 0:01:11.7]} 24. Ng5 {[%clk 0:02:07.2]} 24... Rae8 {[%clk
0:01:01.3]} 25. Rh7+ {[%clk 0:02:03.2]} 25... Kf6 {[%clk 0:01:01.2]} 26. Qh4
{[%clk 0:01:49.4]} 26... e1=Q+ {[%clk 0:00:59.1]} 27. Rxe1 {[%clk 0:01:48.8]}
27... Qxe1+ {[%clk 0:00:59.5]} 28. Kh2 {[%clk 0:01:49.1]} 28... Be5+ {[%clk
0:00:59.5]} 29. g3 {[%clk 0:01:36.8]} 29... Qxf2+ {[%clk 0:00:59.2]} 30. Kh3
{[%clk 0:01:36.5]} 30... Qf5+ {[%clk 0:00:33.5]} 31. Kg2 {[%clk 0:01:32.8]}
31... Qxg5 {[%clk 0:00:31.3]} 32. Qxg5+ {[%clk 0:01:31.6]} 32... Kxg5 {[%clk
0:00:31.2]} 0-1

[Event "Late-Titled-Tuesday-Blitz-February-13-2024"]
[Site "Chess.com"]
[Date "2024.02.13"]
[Round "4"]
[White "aqibjbutt"]
[Black "pirulillo"]
[Result "1-0"]
[WhiteElo "2073"]
[BlackElo "2272"]
[TimeControl "180+1"]
[EndTime "14:36:48 PST"]
[Termination "aqibjbutt won by resignation"]

1. d4 {[%clk 0:02:56.4]} 1... Nf6 {[%clk 0:02:55.9]} 2. c4 {[%clk 0:02:54.9]}
2... g6 {[%clk 0:02:53]} 3. Nc3 {[%clk 0:02:55.2]} 3... Bg7 {[%clk 0:02:48.1]}
4. g3 {[%clk 0:02:53.9]} 4... O-O {[%clk 0:02:47.7]} 5. Bg2 {[%clk 0:02:54.5]}
5... d6 {[%clk 0:02:48.6]} 6. Nf3 {[%clk 0:02:54.9]} 6... Bf5 {[%clk 0:02:48.9]}
7. O-O {[%clk 0:02:54.7]} 7... Ne4 {[%clk 0:02:49.4]} 8. Nxe4 {[%clk 0:02:53.7]}
8... Bxe4 {[%clk 0:02:47.7]} 9. b3 {[%clk 0:02:53.7]} 9... c5 {[%clk 0:02:43.3]}
10. Bb2 {[%clk 0:02:53.3]} 10... Nc6 {[%clk 0:02:43.4]} 11. e3 {[%clk 0:02:43]}
11... Qb6 {[%clk 0:02:28.6]} 12. dxc5 {[%clk 0:02:39.7]} 12... dxc5 {[%clk
0:02:25.9]} 13. Bxg7 {[%clk 0:02:39.5]} 13... Kxg7 {[%clk 0:02:25.9]} 14. Qc1
{[%clk 0:02:38.8]} 14... Rad8 {[%clk 0:02:11.1]} 15. Qc3+ {[%clk 0:02:30.7]}
15... f6 {[%clk 0:02:03.7]} 16. Ng5 {[%clk 0:02:28.3]} 16... Bxg2 {[%clk
0:01:50.5]} 17. Ne6+ {[%clk 0:02:19.6]} 17... Kh8 {[%clk 0:01:44.7]} 18. Kxg2
{[%clk 0:02:18.5]} 18... Ne5 {[%clk 0:01:39.4]} 19. Nxd8 {[%clk 0:02:14.4]}
19... Rxd8 {[%clk 0:01:38.4]} 20. Rfd1 {[%clk 0:01:48.6]} 20... Qc6+ {[%clk
0:01:34.5]} 21. Kg1 {[%clk 0:01:44]} 21... Rxd1+ {[%clk 0:01:28.1]} 22. Rxd1
{[%clk 0:01:42.5]} 22... Qf3 {[%clk 0:01:29]} 23. Qd2 {[%clk 0:01:28.6]} 23...
Qg4 {[%clk 0:01:23.9]} 24. Qd5 {[%clk 0:01:18.2]} 24... Kg7 {[%clk 0:01:13.6]}
25. Kg2 {[%clk 0:01:13.5]} 25... e6 {[%clk 0:01:12.5]} 26. h3 {[%clk 0:01:01.9]}
26... exd5 {[%clk 0:01:02.1]} 27. hxg4 {[%clk 0:01:00.6]} 27... dxc4 {[%clk
0:01:03]} 28. bxc4 {[%clk 0:00:54.2]} 28... Nxc4 {[%clk 0:01:02.3]} 29. Rd7+
{[%clk 0:00:54.3]} 29... Kh6 {[%clk 0:01:01.8]} 30. Rxb7 {[%clk 0:00:55.2]} 1-0

[Event "Late-Titled-Tuesday-Blitz-February-13-2024"]
[Site "Chess.com"]
[Date "2024.02.13"]
[Round "4"]
[White "Sokoloco"]
[Black "Antipov_Mikhail_Al"]
[Result "0-1"]
[WhiteElo "2803"]
[BlackElo "2971"]
[TimeControl "180+1"]
[EndTime "14:36:58 PST"]
[Termination "Antipov_Mikhail_Al won by resignation"]

1. b3 {[%clk 0:03:00.9]} 1... d5 {[%clk 0:02:58.3]} 2. e3 {[%clk 0:03:00.9]}
2... Bf5 {[%clk 0:02:57.6]} 3. Nf3 {[%clk 0:03:00.5]} 3... h6 {[%clk 0:02:57.8]}
4. d4 {[%clk 0:03:00.8]} 4... e6 {[%clk 0:02:55.7]} 5. Bd3 {[%clk 0:03:01.3]}
5... c6 {[%clk 0:02:49.1]} 6. O-O {[%clk 0:03:00]} 6... Nf6 {[%clk 0:02:44.8]}
7. c4 {[%clk 0:02:59.6]} 7... Bb4 {[%clk 0:02:27.8]} 8. Qc2 {[%clk 0:02:55.9]}
8... Bxd3 {[%clk 0:02:09.5]} 9. Qxd3 {[%clk 0:02:56.8]} 9... Nbd7 {[%clk
0:02:05.8]} 10. Nbd2 {[%clk 0:02:55.6]} 10... O-O {[%clk 0:02:05.3]} 11. Bb2
{[%clk 0:02:56.2]} 11... Qe7 {[%clk 0:02:00.7]} 12. e4 {[%clk 0:02:56.2]} 12...
dxe4 {[%clk 0:01:47.5]} 13. Nxe4 {[%clk 0:02:57.1]} 13... Rad8 {[%clk
0:01:46.3]} 14. a3 {[%clk 0:02:52.8]} 14... Ba5 {[%clk 0:01:40]} 15. Rad1 {[%clk
0:02:46.3]} 15... Rfe8 {[%clk 0:01:36.6]} 16. Qe2 {[%clk 0:02:33.7]} 16... Nxe4
{[%clk 0:01:34.1]} 17. Qxe4 {[%clk 0:02:34.6]} 17... Nf6 {[%clk 0:01:34.8]} 18.
Qe2 {[%clk 0:02:34.8]} 18... a6 {[%clk 0:01:29]} 19. Ne5 {[%clk 0:02:25.2]}
19... Nd7 {[%clk 0:01:26.4]} 20. Nf3 {[%clk 0:02:12.6]} 20... Qd6 {[%clk
0:01:18.4]} 21. h3 {[%clk 0:02:11.5]} 21... Qf4 {[%clk 0:01:18.2]} 22. Bc1
{[%clk 0:02:07.2]} 22... Qf5 {[%clk 0:01:18]} 23. Bb2 {[%clk 0:02:02.7]} 23...
Nf8 {[%clk 0:01:04.6]} 24. Ne5 {[%clk 0:02:00.5]} 24... Ng6 {[%clk 0:01:04.7]}
25. Nxg6 {[%clk 0:01:46.5]} 25... Qxg6 {[%clk 0:01:05.6]} 26. Rd3 {[%clk
0:01:45.2]} 26... Bc7 {[%clk 0:00:58.3]} 27. Re1 {[%clk 0:01:38.9]} 27... Rd7
{[%clk 0:00:52]} 28. d5 {[%clk 0:01:31.6]} 28... cxd5 {[%clk 0:00:52.9]} 29.
cxd5 {[%clk 0:01:31.8]} 29... Red8 {[%clk 0:00:53.5]} 30. d6 {[%clk 0:01:26]}
30... Bxd6 {[%clk 0:00:50.4]} 31. Red1 {[%clk 0:01:26.6]} 31... Bh2+ {[%clk
0:00:49.1]} 32. Kxh2 {[%clk 0:01:17.1]} 32... Rxd3 {[%clk 0:00:50]} 33. Rc1
{[%clk 0:01:15.7]} 33... Rd2 {[%clk 0:00:49.4]} 34. Qe5 {[%clk 0:01:15.8]} 34...
Rxf2 {[%clk 0:00:44.4]} 0-1

[Event "Late-Titled-Tuesday-Blitz-February-13-2024"]
[Site "Chess.com"]
[Date "2024.02.13"]
[Round "4"]
[White "DonkyDonkyDonkey"]
[Black "HaryKane"]
[Result "1-0"]
[WhiteElo "2956"]
[BlackElo "2597"]
[TimeControl "180+1"]
[EndTime "14:36:58 PST"]
[Termination "DonkyDonkyDonkey won by resignation"]

1. e4 {[%clk 0:03:00.9]} 1... e6 {[%clk 0:03:00]} 2. d4 {[%clk 0:03:00.4]} 2...
d5 {[%clk 0:03:00.4]} 3. e5 {[%clk 0:03:01.3]} 3... c5 {[%clk 0:02:59]} 4. c3
{[%clk 0:03:02.2]} 4... Nc6 {[%clk 0:02:58.9]} 5. Nf3 {[%clk 0:03:02.9]} 5...
Qb6 {[%clk 0:02:58.5]} 6. Bd3 {[%clk 0:03:03.5]} 6... cxd4 {[%clk 0:02:57.8]} 7.
cxd4 {[%clk 0:03:04.4]} 7... Bd7 {[%clk 0:02:57.6]} 8. O-O {[%clk 0:03:04.7]}
8... Nxd4 {[%clk 0:02:57.9]} 9. Nbd2 {[%clk 0:03:05.2]} 9... Nxf3+ {[%clk
0:02:57.5]} 10. Qxf3 {[%clk 0:03:06.1]} 10... Bb5 {[%clk 0:02:54.7]} 11. Nb3
{[%clk 0:03:03.8]} 11... Bxd3 {[%clk 0:02:51.4]} 12. Qxd3 {[%clk 0:03:04.7]}
12... Ne7 {[%clk 0:02:49.8]} 13. Be3 {[%clk 0:03:04.9]} 13... Qd8 {[%clk
0:02:40.6]} 14. Nc5 {[%clk 0:03:04.1]} 14... Qc7 {[%clk 0:02:25.2]} 15. Rac1
{[%clk 0:03:02.7]} 15... Nc6 {[%clk 0:02:23.9]} 16. Qb5 {[%clk 0:03:02.9]} 16...
a6 {[%clk 0:02:19.7]} 17. Qa4 {[%clk 0:03:03]} 17... Rc8 {[%clk 0:02:07.6]} 18.
Rc2 {[%clk 0:02:52.3]} 18... d4 {[%clk 0:01:44.1]} 19. Nxa6 {[%clk 0:02:16.8]}
19... bxa6 {[%clk 0:01:12.3]} 20. Rfc1 {[%clk 0:02:17.3]} 20... Qd7 {[%clk
0:00:47.1]} 21. Rxc6 {[%clk 0:02:15.7]} 21... Rxc6 {[%clk 0:00:46.9]} 22. Rxc6
{[%clk 0:02:16.5]} 22... Be7 {[%clk 0:00:45]} 23. Bxd4 {[%clk 0:02:03.9]} 23...
O-O {[%clk 0:00:44.8]} 24. Rc4 {[%clk 0:02:04.4]} 24... Qd5 {[%clk 0:00:43.6]}
25. Qxa6 {[%clk 0:02:03.2]} 25... f6 {[%clk 0:00:36]} 26. h3 {[%clk 0:01:38.6]}
26... fxe5 {[%clk 0:00:28.6]} 27. Be3 {[%clk 0:01:37.5]} 27... Qd1+ {[%clk
0:00:20.4]} 28. Kh2 {[%clk 0:01:37.7]} 28... Bd6 {[%clk 0:00:20.9]} 29. Re4
{[%clk 0:01:34.8]} 29... Qd5 {[%clk 0:00:19.8]} 30. Qc4 {[%clk 0:01:35]} 30...
Qxc4 {[%clk 0:00:19.6]} 31. Rxc4 {[%clk 0:01:35.9]} 31... e4+ {[%clk 0:00:20.2]}
32. g3 {[%clk 0:01:35.3]} 32... Rb8 {[%clk 0:00:19.5]} 33. b3 {[%clk 0:01:35.7]}
33... Ra8 {[%clk 0:00:19.9]} 34. a4 {[%clk 0:01:35.8]} 34... Rb8 {[%clk
0:00:20]} 35. Rxe4 {[%clk 0:01:36.6]} 35... Rxb3 {[%clk 0:00:19.5]} 36. Rxe6
{[%clk 0:01:37.4]} 36... Bf8 {[%clk 0:00:17.4]} 37. a5 {[%clk 0:01:37.7]} 37...
Ra3 {[%clk 0:00:17.8]} 38. a6 {[%clk 0:01:38.3]} 38... Kf7 {[%clk 0:00:18.1]}
39. Rc6 {[%clk 0:01:38.9]} 39... Ra2 {[%clk 0:00:17.2]} 40. a7 {[%clk
0:01:37.6]} 1-0

[Event "Late-Titled-Tuesday-Blitz-February-13-2024"]
[Site "Chess.com"]
[Date "2024.02.13"]
[Round "4"]
[White "Road2GM3000"]
[Black "MikeSailer"]
[Result "1-0"]
[WhiteElo "2471"]
[BlackElo "2199"]
[TimeControl "180+1"]
[EndTime "14:37:01 PST"]
[Termination "Road2GM3000 won by checkmate"]

1. d4 {[%clk 0:03:00.9]} 1... d5 {[%clk 0:03:00]} 2. c4 {[%clk 0:03:01.3]} 2...
Bf5 {[%clk 0:02:55.5]} 3. Nc3 {[%clk 0:03:00.9]} 3... e6 {[%clk 0:02:54.5]} 4.
cxd5 {[%clk 0:03:00.3]} 4... exd5 {[%clk 0:02:54.7]} 5. Qb3 {[%clk 0:03:01]}
5... Nc6 {[%clk 0:02:54.9]} 6. Qxb7 {[%clk 0:03:00.4]} 6... Nb4 {[%clk
0:02:54.9]} 7. e4 {[%clk 0:02:58.1]} 7... Nc2+ {[%clk 0:02:28.4]} 8. Kd1 {[%clk
0:02:42.8]} 8... Nxa1 {[%clk 0:02:20.9]} 9. exf5 {[%clk 0:02:41.3]} 9... Bd6
{[%clk 0:02:10.1]} 10. Bb5+ {[%clk 0:02:34.7]} 10... Kf8 {[%clk 0:02:09.5]} 11.
Nxd5 {[%clk 0:02:25.8]} 11... Rb8 {[%clk 0:02:01]} 12. Qc6 {[%clk 0:02:23.2]}
12... Ne7 {[%clk 0:01:53.4]} 13. Nxe7 {[%clk 0:02:19.9]} 13... Qxe7 {[%clk
0:01:53.8]} 14. Nf3 {[%clk 0:02:19.3]} 14... h6 {[%clk 0:01:27.6]} 15. Re1
{[%clk 0:02:17.7]} 15... Qd8 {[%clk 0:01:19.3]} 16. f6 {[%clk 0:02:06.5]} 16...
gxf6 {[%clk 0:01:14.9]} 17. Nh4 {[%clk 0:02:01.1]} 17... Bb4 {[%clk 0:00:44]}
18. Re4 {[%clk 0:01:43.2]} 18... Kg7 {[%clk 0:00:30.1]} 19. Nf5+ {[%clk
0:01:41.7]} 19... Kh7 {[%clk 0:00:30.8]} 20. Rh4 {[%clk 0:01:35]} 20... Bf8
{[%clk 0:00:20.2]} 21. Bxh6 {[%clk 0:01:32.6]} 21... Bxh6 {[%clk 0:00:17.6]} 22.
Nxh6 {[%clk 0:01:29]} 22... Kg6 {[%clk 0:00:13.9]} 23. Bd3+ {[%clk 0:01:24.2]}
23... Kg7 {[%clk 0:00:12.6]} 24. Nf5+ {[%clk 0:01:23]} 24... Kg8 {[%clk
0:00:13.3]} 25. Rg4+ {[%clk 0:01:21.5]} 25... Kf8 {[%clk 0:00:13.9]} 26. Qc5+
{[%clk 0:01:20.4]} 26... Ke8 {[%clk 0:00:10.1]} 27. Ng7+ {[%clk 0:01:20.4]}
27... Kd7 {[%clk 0:00:03.9]} 28. Bf5# {[%clk 0:01:20]} 1-0